bitfinex/quotes_BTCUSD_20240602
["timestamp","ask_amount","ask_price","bid_price","bid_amount"]
[1717358424226,0.147597,67752.0,67751.0,0.1615]
[1717358426692,0.150597,67752.0,67751.0,0.1615]
[1717358427382,0.151597,67752.0,67751.0,0.1615]
[1717358431065,0.150597,67752.0,67751.0,0.1615]
[1717358431782,0.27842099,67752.0,67751.0,0.1615]
[1717358431990,0.27542099,67752.0,67751.0,0.1615]
[1717358432413,0.27942099,67752.0,67751.0,0.1615]
[1717358433065,0.28142099,67752.0,67751.0,0.1615]
[1717358433276,0.28242099,67752.0,67751.0,0.1615]
[1717358433995,0.13482399,67752.0,67751.0,0.1615]
[1717358434218,0.13482399,67752.0,67751.0,0.16167769]
[1717358434444,0.007,67752.0,67751.0,0.16167769]
[1717358437400,0.13617139,67752.0,67751.0,0.16167769]
[1717358437565,0.007,67752.0,67751.0,0.35825841]
[1717358437769,0.007,67752.0,67751.0,0.58785741]
[1717358445891,0.007,67752.0,67751.0,0.71235741]
[1717358446093,0.006,67752.0,67751.0,0.71235741]
[1717358446312,0.00086,67772.0,67771.0,0.0509805]
[1717358446520,0.04689508,67772.0,67771.0,0.2958805]
[1717358447048,0.00086,67772.0,67771.0,0.2958805]
[1717358448096,0.00386,67772.0,67771.0,0.2958805]
[1717358449009,0.00486,67772.0,67771.0,0.2968805]
[1717358449210,0.00486,67772.0,67771.0,0.29670281]
[1717358449897,0.00486,67772.0,67771.0,0.2968805]
[1717358454017,0.00486,67772.0,67771.0,0.29670281]
[1717358454573,0.00486,67772.0,67771.0,0.2968805]
[1717358455997,0.00486,67772.0,67771.0,0.29670281]
[1717358457407,0.00486,67772.0,67771.0,0.2968805]
[1717358461327,0.00486,67772.0,67771.0,0.29670281]
[1717358463012,0.00486,67772.0,67771.0,0.2968805]
[1717358465188,0.05087775,67772.0,67771.0,0.2968805]
[1717358465414,0.15350167,67772.0,67771.0,0.29670281]
[1717358465628,0.05087775,67772.0,67771.0,0.29670281]
[1717358465831,0.05087775,67772.0,67771.0,0.2968805]
[1717358467029,0.00486,67772.0,67771.0,0.44265841]
[1717358468830,0.00486,67772.0,67771.0,0.59021341]
[1717358473830,0.00486,67772.0,67771.0,0.64001341]
[1717358474455,0.00086,67772.0,67771.0,0.63901341]
[1717358474651,0.00386,67772.0,67771.0,0.66401341]
[1717358474851,0.00686,67772.0,67771.0,0.67001341]
[1717358480793,0.00686,67772.0,67771.0,0.86590236]
[1717358481027,0.00686,67772.0,67771.0,0.98979252]
[1717358481179,0.00686,67772.0,67771.0,1.08979252]
[1717358481404,0.00686,67772.0,67771.0,1.35390352]
[1717358481405,0.00386,67772.0,67771.0,1.35390352]
[1717358481645,0.00086,67772.0,67771.0,1.25390352]
[1717358481892,0.00586,67772.0,67771.0,1.29790352]
[1717358482851,0.00586,67772.0,67771.0,1.24810352]
[1717358483099,0.00586,67772.0,67771.0,1.29790352]
[1717358486831,0.00586,67772.0,67771.0,1.24810352]
[1717358486986,0.00586,67772.0,67771.0,1.29790352]
[1717358487370,0.00586,67772.0,67771.0,1.17401336]
[1717358487566,0.00586,67772.0,67771.0,1.29952878]
[1717358488078,0.43733372,67797.0,67796.0,0.0509805]
[1717358488419,0.0804,67798.0,67796.0,0.0509805]
[1717358488420,0.0804,67798.0,67797.0,0.05080281]
[1717358488628,0.0804,67798.0,67797.0,0.0509805]
[1717358489053,0.1539,67800.0,67799.0,0.0509805]
[1717358489475,0.147486,67803.0,67802.0,0.05080281]
[1717358491248,0.147486,67803.0,67802.0,0.05580281]
[1717358492211,0.147477,67807.0,67802.0,0.05580281]
[1717358492553,0.04614623,67806.0,67805.0,0.05080281]
[1717358492826,0.147477,67807.0,67806.0,0.05080281]
[1717358494932,0.147477,67807.0,67806.0,0.05180281]
[1717358497851,0.29865271,67807.0,67806.0,0.05180281]
[1717358498960,0.19370991,67807.0,67806.0,0.05180281]
[1717358499364,0.29926276,67807.0,67806.0,0.05180281]
[1717358499941,0.19370991,67807.0,67806.0,0.05180281]
[1717358500179,0.29924898,67807.0,67806.0,0.05180281]
[1717358504800,0.54794898,67807.0,67806.0,0.05180281]
[1717358505675,0.54794898,67807.0,67806.0,0.001]
[1717358505866,0.59774898,67807.0,67806.0,0.001]
[1717358506399,0.69774898,67807.0,67806.0,0.001]
[1717358507030,0.64794898,67807.0,67806.0,0.001]
[1717358507238,0.69774898,67807.0,67806.0,0.001]
[1717358507650,0.59774898,67807.0,67806.0,0.001]
[1717358510050,0.69774898,67807.0,67806.0,0.001]
[1717358510181,0.59774898,67807.0,67806.0,0.001]
[1717358510625,0.69774898,67807.0,67806.0,0.001]
[1717358510802,0.59774898,67807.0,67806.0,0.001]
[1717358511033,0.69774898,67807.0,67806.0,0.001]
[1717358511214,0.54794898,67807.0,67806.0,0.001]
[1717358511619,0.59774898,67807.0,67806.0,0.001]
[1717358512239,0.66384465,67807.0,67806.0,0.001]
[1717358512431,0.59774898,67807.0,67806.0,0.001]
[1717358512953,1.02473048,67807.0,67806.0,0.001]
[1717358513178,1.11285804,67807.0,67806.0,0.001]
[1717358513924,1.06305804,67807.0,67806.0,0.001]
[1717358514155,1.11285804,67807.0,67806.0,0.001]
[1717358514350,1.02473048,67807.0,67806.0,0.001]
[1717358516233,1.13488993,67807.0,67806.0,0.001]
[1717358516454,1.02473048,67807.0,67806.0,0.001]
[1717358516657,1.13488993,67807.0,67806.0,0.001]
[1717358518998,1.08508993,67807.0,67806.0,0.001]
[1717358519208,1.02473048,67807.0,67806.0,0.001]
[1717358519763,0.92473048,67807.0,67806.0,0.001]
[1717358519948,1.13510803,67807.0,67806.0,0.001]
[1717358520143,1.03510803,67807.0,67806.0,0.001]
[1717358521123,0.98809851,67807.0,67806.0,0.001]
[1717358521298,0.92393251,67807.0,67806.0,0.001]
[1717358521503,1.03519874,67807.0,67806.0,0.001]
[1717358521708,1.03519893,67807.0,67806.0,0.001]
[1717358521848,0.92479251,67807.0,67806.0,0.001]
[1717358522833,0.87499251,67807.0,67806.0,0.001]
[1717358523042,0.79249251,67807.0,67806.0,0.001]
[1717358524418,0.90295352,67807.0,67806.0,0.001]
[1717358524625,0.62629251,67807.0,67806.0,0.001]
[1717358525023,0.73675407,67807.0,67806.0,0.001]
[1717358525254,0.62629251,67807.0,67806.0,0.001]
[1717358527736,0.86479251,67807.0,67806.0,0.001]
[1717358528496,0.96479251,67807.0,67806.0,0.001]
[1717358529350,0.86479251,67807.0,67806.0,0.001]
[1717358529582,0.96479251,67807.0,67806.0,0.001]
[1717358529774,2.0274293,67807.0,67806.0,0.001]
[1717358529974,3.4046042,67807.0,67806.0,0.001]
[1717358530227,3.4544042,67807.0,67806.0,0.001]
[1717358530636,0.147514,67790.0,67789.0,0.05080281]
[1717358530837,0.29848801,67790.0,67789.0,0.05080281]
[1717358531975,0.29848801,67790.0,67789.0,0.05180281]
[1717358532990,0.36482257,67790.0,67789.0,0.05180281]
[1717358533952,0.36682257,67790.0,67789.0,0.05280281]
[1717358534636,0.36682257,67790.0,67789.0,0.002]
[1717358534906,0.30048801,67790.0,67789.0,0.002]
[1717358535142,0.71117643,67790.0,67789.0,0.002]
[1717358535375,0.7682927,67790.0,67789.0,0.002]
[1717358535604,0.7682927,67790.0,67789.0,0.05280281]
[1717358535870,0.7682927,67790.0,67789.0,0.002]
[1717358536324,0.44605036,67790.0,67789.0,0.002]
[1717358536561,0.30048801,67790.0,67789.0,0.002]
[1717358537803,0.62142208,67790.0,67789.0,0.002]
[1717358538047,0.70986816,67790.0,67789.0,0.002]
[1717358538287,0.76698443,67790.0,67789.0,0.002]
[1717358538550,0.70986816,67790.0,67789.0,0.002]
[1717358539016,0.85543051,67790.0,67789.0,0.002]
[1717358539264,0.70986816,67790.0,67789.0,0.002]
[1717358539495,0.76698443,67790.0,67789.0,0.002]
[1717358540390,0.85543051,67790.0,67789.0,0.002]
[1717358540615,0.76698443,67790.0,67789.0,0.002]
[1717358541084,0.85543051,67790.0,67789.0,0.002]
[1717358542512,0.76698443,67790.0,67789.0,0.002]
[1717358543582,0.85543051,67790.0,67789.0,0.002]
[1717358544791,1.22865851,67790.0,67789.0,0.002]
[1717358545015,1.81404794,67790.0,67789.0,0.002]
[1717358545216,1.70349034,67790.0,67789.0,0.002]
[1717358546443,1.70349034,67790.0,67776.0,0.0764]
[1717358546444,0.147542,67777.0,67776.0,0.0764]
[1717358546789,0.25230446,67777.0,67776.0,0.0764]
[1717358547192,0.29930098,67777.0,67776.0,0.0764]
[1717358547364,0.25230446,67777.0,67776.0,0.0764]
[1717358547758,0.25230446,67777.0,67776.0,0.12720281]
[1717358548332,0.25230446,67777.0,67776.0,0.14320281]
[1717358548539,0.25230446,67777.0,67776.0,0.0924]
[1717358548736,0.25230446,67777.0,67776.0,0.14320281]
[1717358549364,0.25230446,67777.0,67776.0,0.0994]
[1717358549943,0.29930018,67777.0,67776.0,0.15020281]
[1717358550111,0.29930018,67777.0,67776.0,0.14320281]
[1717358550319,0.25230446,67777.0,67776.0,0.14320281]
[1717358550553,0.29933167,67777.0,67776.0,0.0924]
[1717358551191,0.147544,67776.0,67775.0,0.05080281]
[1717358551390,0.25230646,67776.0,67775.0,0.05080281]
[1717358552780,0.26530646,67776.0,67775.0,0.05180281]
[1717358553224,0.25230646,67776.0,67775.0,0.05080281]
[1717358553666,0.26130646,67776.0,67775.0,0.05180281]
[1717358553902,0.26130646,67776.0,67775.0,0.12920281]
[1717358556196,0.26130646,67776.0,67775.0,0.1293805]
[1717358558472,0.26130646,67776.0,67775.0,0.2917805]
[1717358563047,0.30835112,67776.0,67775.0,0.2917805]
[1717358564862,0.30835112,67776.0,67775.0,0.29160281]
[1717358565213,0.30835112,67776.0,67775.0,0.2917805]
[1717358566239,0.30835112,67776.0,67775.0,0.29160281]
[1717358566457,0.30835112,67776.0,67775.0,0.2917805]
[1717358569583,0.30835112,67776.0,67775.0,0.29160281]
[1717358570603,0.16080712,67776.0,67775.0,0.29160281]
[1717358571248,0.16080712,67776.0,67775.0,0.2917805]
[1717358571468,0.16080712,67776.0,67775.0,0.29160281]
[1717358571674,0.16080712,67776.0,67775.0,0.2917805]
[1717358572727,0.16080712,67776.0,67775.0,0.3415805]
[1717358573329,0.16051822,67776.0,67775.0,0.2917805]
[1717358575564,0.16051822,67776.0,67775.0,0.3415805]
[1717358578549,0.16051822,67776.0,67775.0,0.0508]
[1717358578749,0.30806222,67776.0,67775.0,0.001]
[1717358579334,0.37439163,67776.0,67775.0,0.001]
[1717358580394,0.30806222,67776.0,67775.0,0.001]
[1717358581198,0.37441161,67776.0,67775.0,0.001]
[1717358581403,0.78172915,67776.0,67775.0,0.001]
[1717358581777,1.09682993,67776.0,67775.0,0.001]
[1717358582868,0.308151,67773.0,67772.0,0.000946]
[1717358583076,0.58746922,67773.0,67772.0,0.000946]
[1717358583280,0.90075291,67773.0,67772.0,0.000946]
[1717358583498,1.08783693,67773.0,67772.0,0.000946]
[1717358584130,1.13199537,67773.0,67772.0,0.000946]
[1717358585196,1.24256595,67773.0,67772.0,0.000946]
[1717358585409,1.54883641,67773.0,67772.0,0.000946]
[1717358585993,1.45626583,67773.0,67772.0,0.002946]
[1717358586233,1.56683204,67773.0,67772.0,0.002946]
[1717358586866,1.51703204,67773.0,67772.0,0.002946]
[1717358587076,1.45626583,67773.0,67772.0,0.002946]
[1717358587744,1.40646583,67773.0,67772.0,0.002946]
[1717358588215,1.51702487,67773.0,67772.0,0.002946]
[1717358588431,1.40646583,67773.0,67772.0,0.002946]
[1717358594846,1.70156783,67773.0,67772.0,0.002946]
[1717358595210,1.80156783,67773.0,67772.0,0.002946]
[1717358595388,2.09666983,67773.0,67772.0,0.002946]
[1717358595640,2.65926393,67773.0,67772.0,0.002946]
[1717358595919,3.09578302,67773.0,67772.0,0.002946]
[1717358596132,3.13079252,67773.0,67772.0,0.002946]
[1717358596539,3.26200352,67773.0,67772.0,0.000946]
[1717358596748,3.29700352,67773.0,67772.0,0.003946]
[1717358597095,3.37042972,67773.0,67772.0,0.003946]
[1717358597286,3.33542972,67773.0,67772.0,0.000946]
[1717358597488,3.66553172,67773.0,67772.0,0.006946]
[1717358597693,3.68853172,67773.0,67772.0,0.006946]
[1717358602856,3.75941016,67773.0,67772.0,0.006946]
[1717358603061,6.06656016,67773.0,67772.0,0.006946]
[1717358603281,5.94002916,67773.0,67772.0,0.006946]
[1717358603498,0.147592,67754.0,67753.0,0.0789]
[1717358603709,0.70266013,67754.0,67753.0,0.0789]
[1717358605263,0.147603,67749.0,67748.0,0.000946]
[1717358605469,0.29946436,67749.0,67748.0,0.000946]
[1717358606473,0.29946436,67749.0,67748.0,0.003946]
[1717358606717,0.30046436,67749.0,67748.0,0.003946]
[1717358607092,0.30046436,67749.0,67748.0,0.010946]
[1717358609941,0.3474447,67749.0,67748.0,0.010946]
[1717358610547,0.3972447,67749.0,67748.0,0.010946]
[1717358611872,0.3972447,67749.0,67748.0,0.007946]
[1717358612081,0.3962447,67749.0,67748.0,0.000946]
[1717358612291,0.4012447,67749.0,67748.0,0.001946]
[1717358612721,0.4012447,67749.0,67748.0,0.000946]
[1717358612722,0.6914517,67749.0,67748.0,0.000946]
[1717358612947,0.7914517,67749.0,67748.0,0.001946]
[1717358613189,1.00618306,67749.0,67748.0,0.003946]
[1717358613651,1.00618306,67749.0,67748.0,0.004946]
[1717358614197,1.38264806,67749.0,67748.0,0.004946]
[1717358615393,2.15843297,67749.0,67748.0,0.004946]
[1717358615653,2.20255695,67749.0,67748.0,0.004946]
[1717358616079,2.15843297,67749.0,67748.0,0.004946]
[1717358616401,2.1965148,67749.0,67748.0,0.000946]
[1717358616603,2.1965148,67749.0,67748.0,0.003946]
[1717358616878,2.2325148,67749.0,67748.0,0.005946]
[1717358617324,2.28171199,67749.0,67748.0,0.008946]
[1717358617455,2.56110173,67749.0,67748.0,0.008946]
[1717358617651,2.70690727,67749.0,67748.0,0.008946]
[1717358617855,2.81803541,67749.0,67748.0,0.008946]
[1717358618059,2.67222987,67749.0,67748.0,0.006946]
[1717358618242,2.26929875,67749.0,67748.0,0.006946]
[1717358618466,2.58340306,67749.0,67748.0,0.006946]
[1717358618668,2.87861006,67749.0,67748.0,0.006946]
[1717358619087,2.66656097,67749.0,67748.0,0.006946]
[1717358619294,2.60050575,67749.0,67748.0,0.006946]
[1717358619480,2.74631129,67749.0,67748.0,0.006946]
[1717358620076,2.81236319,67749.0,67748.0,0.006946]
[1717358620399,2.74631129,67749.0,67748.0,0.006946]
[1717358621159,3.11210647,67749.0,67748.0,0.006946]
[1717358621548,2.77351375,67749.0,67748.0,0.006946]
[1717358621752,2.77351375,67749.0,67740.0,0.009427]
[1717358621753,0.88730219,67741.0,67740.0,0.009427]
[1717358621957,3.10768972,67741.0,67740.0,0.009427]
[1717358622366,3.26198972,67741.0,67740.0,0.009427]
[1717358622570,3.40920818,67741.0,67740.0,0.009427]
[1717358622780,3.47527107,67741.0,67740.0,0.009427]
[1717358623191,3.40920818,67741.0,67740.0,0.009427]
[1717358623408,3.50627107,67741.0,67740.0,0.012427]
[1717358623815,3.39239207,67741.0,67740.0,0.012427]
[1717358624011,3.24439818,67741.0,67740.0,0.012427]
[1717358624215,3.31044252,67741.0,67740.0,0.012427]
[1717358624440,3.49224806,67741.0,67740.0,0.012427]
[1717358624571,3.39224806,67741.0,67740.0,0.012427]
[1717358624773,3.21367972,67741.0,67740.0,0.012427]
[1717358624998,1.83429918,67741.0,67740.0,0.012427]
[1717358625158,2.73938818,67741.0,67740.0,0.012427]
[1717358625376,2.78342208,67741.0,67740.0,0.012427]
[1717358625578,2.88342208,67741.0,67740.0,0.012427]
[1717358626203,2.88336753,67741.0,67740.0,0.012427]
[1717358627282,2.81675843,67741.0,67740.0,0.012427]
[1717358628990,2.88333794,67741.0,67740.0,0.012427]
[1717358630159,2.83930323,67741.0,67740.0,0.012427]
[1717358630394,2.88333522,67741.0,67740.0,0.012427]
[1717358631000,2.83930323,67741.0,67740.0,0.012427]
[1717358632182,2.83930323,67741.0,67726.0,0.009427]
[1717358632183,1.07735419,67736.0,67726.0,0.009427]
[1717358632394,2.32298385,67736.0,67726.0,0.009427]
[1717358632604,2.68005538,67736.0,67726.0,0.009427]
[1717358632812,5.41496538,67736.0,67726.0,0.009427]
[1717358633036,5.56077092,67736.0,67726.0,0.009427]
[1717358633750,5.81573321,67736.0,67735.0,0.002946]
[1717358633953,5.85173321,67736.0,67735.0,0.002946]
[1717358634171,5.85143796,67736.0,67735.0,0.002946]
[1717358634387,5.85143796,67736.0,67726.0,0.009427]
[1717358634388,0.88715894,67727.0,67726.0,0.009427]
[1717358634597,4.50521447,67727.0,67726.0,0.009427]
[1717358635012,4.50521447,67727.0,67722.0,0.000946]
[1717358635013,0.88720194,67723.0,67722.0,0.000946]
[1717358635228,4.76722386,67723.0,67722.0,0.000946]
[1717358635431,5.06254386,67723.0,67722.0,0.000946]
[1717358635637,5.3083494,67723.0,67722.0,0.000946]
[1717358635840,5.60677398,67723.0,67722.0,0.000946]
[1717358636262,5.55470366,67723.0,67722.0,0.000946]
[1717358636481,5.86148445,67723.0,67722.0,0.000946]
[1717358636698,5.8614671,67723.0,67722.0,0.000946]
[1717358637742,5.8974671,67723.0,67722.0,0.000946]
[1717358638167,5.8476671,67723.0,67722.0,0.000946]
[1717358638373,4.8957801,67723.0,67722.0,0.000946]
[1717358638626,4.55334134,67723.0,67722.0,0.000946]
[1717358638849,4.50354134,67723.0,67722.0,0.000946]
[1717358639088,4.33473634,67723.0,67722.0,0.000946]
[1717358639306,4.38453634,67723.0,67722.0,0.000946]
[1717358639774,4.28483159,67723.0,67722.0,0.000946]
[1717358639997,4.38453634,67723.0,67722.0,0.000946]
[1717358640436,4.45056396,67723.0,67722.0,0.000946]
[1717358640850,4.38453634,67723.0,67722.0,0.000946]
[1717358641023,4.45056396,67723.0,67722.0,0.000946]
[1717358641427,4.38453634,67723.0,67722.0,0.000946]
[1717358641628,4.33473634,67723.0,67722.0,0.000946]
[1717358641832,4.16582587,67723.0,67722.0,0.000946]
[1717358642247,4.3854976,67723.0,67722.0,0.000946]
[1717358642448,4.3025976,67723.0,67722.0,0.000946]
[1717358642663,2.07624443,67723.0,67722.0,0.000946]
[1717358642881,1.22378835,67723.0,67722.0,0.000946]
[1717358643094,0.60261462,67723.0,67722.0,0.000946]
[1717358643298,0.4163011,67723.0,67722.0,0.081546]
[1717358643503,0.4163011,67723.0,67722.0,0.240146]
[1717358643504,0.36932076,67723.0,67722.0,0.240146]
[1717358643927,0.33332076,67723.0,67722.0,0.240146]
[1717358644139,0.33332076,67723.0,67722.0,0.24061894]
[1717358644350,0.33280599,67723.0,67722.0,0.24061894]
[1717358644567,0.18814599,67723.0,67722.0,0.29142175]
[1717358644784,0.15214599,67723.0,67722.0,0.29094881]
[1717358644996,0.16314599,67723.0,67722.0,0.29142175]
[1717358645213,0.16314599,67723.0,67722.0,0.29124406]
[1717358645419,0.16314599,67723.0,67722.0,0.29142175]
[1717358645625,0.14914599,67723.0,67722.0,0.29142175]
[1717358645835,0.15214599,67723.0,67722.0,0.29142175]
[1717358646482,0.15614599,67723.0,67722.0,0.43719966]
[1717358646717,0.1,67733.0,67722.0,0.43719966]
[1717358646920,0.1,67733.0,67732.0,0.29047575]
[1717358647773,0.147626,67739.0,67738.0,0.00029525]
[1717358648008,0.29474831,67739.0,67738.0,0.23967294]
[1717358648423,0.29474831,67739.0,67738.0,0.2392]
[1717358648883,0.14712231,67739.0,67732.0,0.1603]
[1717358649086,0.07288895,67737.0,67732.0,0.1603]
[1717358649298,0.147638,67733.0,67732.0,0.1603]
[1717358649510,0.19476031,67733.0,67732.0,0.1603]
[1717358650363,0.04712231,67733.0,67726.0,0.1603]
[1717358650564,0.05314695,67732.0,67726.0,0.1603]
[1717358650781,0.04712231,67731.0,67726.0,0.1603]
[1717358650997,0.1,67734.0,67726.0,0.1603]
[1717358651223,0.05266622,67733.0,67726.0,0.1603]
[1717358651438,0.147651,67727.0,67726.0,0.1603]
[1717358651863,0.147651,67727.0,67726.0,0.1613]
[1717358652082,0.19429378,67727.0,67726.0,0.1613]
[1717358652289,0.19429378,67727.0,67726.0,0.1603]
[1717358652733,0.20929378,67727.0,67726.0,0.1613]
[1717358653828,0.21129378,67727.0,67726.0,0.1613]
[1717358654052,0.14766,67723.0,67722.0,0.000946]
[1717358654267,0.32239878,67723.0,67722.0,0.000946]
[1717358654681,0.42239878,67723.0,67722.0,0.000946]
[1717358655328,0.71771878,67723.0,67722.0,0.000946]
[1717358655976,0.74971878,67723.0,67722.0,0.000946]
[1717358656870,0.87221306,67723.0,67722.0,0.000946]
[1717358657796,0.84021306,67723.0,67722.0,0.000946]
[1717358657905,0.87021306,67723.0,67722.0,0.000946]
[1717358658330,0.91421324,67723.0,67722.0,0.000946]
[1717358658748,0.61889324,67723.0,67722.0,0.000946]
[1717358658908,0.44679706,67723.0,67722.0,0.000946]
[1717358662301,0.49079724,67723.0,67722.0,0.000946]
[1717358662712,0.44679706,67723.0,67722.0,0.000946]
[1717358663277,0.49079724,67723.0,67722.0,0.000946]
[1717358664138,0.44679706,67723.0,67722.0,0.000946]
[1717358665588,0.44679706,67723.0,67722.0,0.161246]
[1717358665746,0.44679706,67723.0,67722.0,0.23824125]
[1717358666359,0.44679706,67723.0,67722.0,0.237946]
[1717358669902,0.49079724,67723.0,67722.0,0.237946]
[1717358670418,1.24448125,67723.0,67722.0,0.000946]
[1717358671185,1.33248161,67723.0,67722.0,0.000946]
[1717358671558,1.09475161,67723.0,67722.0,0.000946]
[1717358671990,0.7862871,67723.0,67722.0,0.000946]
[1717358672547,0.80837529,67723.0,67722.0,0.000946]
[1717358672987,0.74211706,67723.0,67722.0,0.000946]
[1717358673498,0.49096757,67723.0,67722.0,0.078946]
[1717358673964,0.44679706,67723.0,67722.0,0.078946]
[1717358677310,0.49096757,67723.0,67722.0,0.078946]
[1717358679799,0.49096757,67723.0,67722.0,0.000946]
[1717358680006,0.51305529,67723.0,67722.0,0.000946]
[1717358680774,0.66788103,67723.0,67722.0,0.000946]
[1717358680980,0.51305529,67723.0,67722.0,0.000946]
[1717358683251,0.44679706,67723.0,67722.0,0.000946]
[1717358684133,0.6016228,67723.0,67722.0,0.000946]
[1717358684394,0.95595738,67723.0,67722.0,0.000946]
[1717358685016,1.02231141,67723.0,67722.0,0.000946]
[1717358685213,0.93431105,67723.0,67722.0,0.000946]
[1717358686007,0.98421105,67723.0,67722.0,0.000946]
[1717358686835,1.0942115,67723.0,67722.0,0.000946]
[1717358688142,1.01925402,67723.0,67722.0,0.000946]
[1717358688571,0.98421105,67723.0,67722.0,0.000946]
[1717358689022,1.01925419,67723.0,67722.0,0.000946]
[1717358690080,1.02011419,67723.0,67722.0,0.000946]
[1717358691501,1.31543419,67723.0,67722.0,0.000946]
[1717358697142,1.39753474,67723.0,67722.0,0.000946]
[1717358697358,1.44743474,67723.0,67722.0,0.000946]
[1717358699314,1.78469362,67723.0,67722.0,0.000946]
[1717358699550,1.65269307,67723.0,67722.0,0.000946]
[1717358699748,1.78564178,67723.0,67722.0,0.000946]
[1717358700359,1.73574178,67723.0,67722.0,0.000946]
[1717358700956,1.3984829,67723.0,67722.0,0.000946]
[1717358702024,1.36343976,67723.0,67722.0,0.000946]
[1717358704423,1.36484248,67723.0,67722.0,0.000946]
[1717358704854,1.23188727,67723.0,67722.0,0.000946]
[1717358705039,1.16565146,67723.0,67722.0,0.000946]
[1717358705253,1.23188402,67723.0,67722.0,0.000946]
[1717358705452,1.16565146,67723.0,67722.0,0.000946]
[1717358706282,1.23187095,67723.0,67722.0,0.000946]
[1717358708393,1.16565146,67723.0,67722.0,0.000946]
[1717358708826,0.87033146,67723.0,67722.0,0.000946]
[1717358709041,0.87033146,67723.0,67722.0,0.080646]
[1717358709263,0.87033146,67723.0,67722.0,0.08111894]
[1717358709479,0.71550572,67723.0,67722.0,0.23461894]
[1717358709908,0.71550572,67723.0,67722.0,0.28542175]
[1717358710323,0.71550572,67723.0,67722.0,0.28494881]
[1717358710884,0.71550572,67723.0,67722.0,0.28524406]
[1717358711066,0.71550572,67723.0,67722.0,0.28542175]
[1717358711271,0.71550572,67723.0,67722.0,0.28494881]
[1717358711718,0.71550572,67723.0,67722.0,0.000946]
[1717358711719,1.01082572,67723.0,67722.0,0.000946]
[1717358711928,1.06072572,67723.0,67722.0,0.000946]
[1717358712330,1.35845627,67723.0,67722.0,0.000946]
[1717358712531,2.18206499,67723.0,67722.0,0.000946]
[1717358712958,2.13556992,67723.0,67722.0,0.000946]
[1717358713169,2.17496544,67723.0,67722.0,0.000946]
[1717358713382,2.14496544,67723.0,67722.0,0.000946]
[1717358713601,2.11906544,67723.0,67722.0,0.000946]
[1717358713810,2.13106544,67723.0,67722.0,0.000946]
[1717358714033,2.18096544,67723.0,67722.0,0.000946]
[1717358714242,2.14496544,67723.0,67722.0,0.000946]
[1717358714449,2.31391069,67723.0,67722.0,0.000946]
[1717358715417,1.97765271,67723.0,67722.0,0.000946]
[1717358715828,2.33135356,67723.0,67722.0,0.000946]
[1717358716520,0.147684,67712.0,67711.0,0.03983875]
[1717358716772,0.37604642,67712.0,67711.0,0.03983875]
[1717358717405,0.37604642,67712.0,67711.0,0.03966106]
[1717358717832,0.38004642,67712.0,67711.0,0.03966106]
[1717358718446,0.38304642,67712.0,67711.0,0.03966106]
[1717358719719,0.38304642,67712.0,67711.0,0.03983875]
[1717358720133,0.3165738,67712.0,67711.0,0.03983875]
[1717358722870,0.3165738,67712.0,67711.0,0.04078475]
[1717358726025,0.1178688,67712.0,67711.0,0.32388475]
[1717358726230,0.16375566,67712.0,67711.0,0.46966266]
[1717358726437,0.007,67712.0,67711.0,0.46966266]
[1717358726842,0.007,67712.0,67711.0,0.27398475]
[1717358727049,0.007,67712.0,67711.0,0.32388475]
[1717358730536,0.007,67712.0,67711.0,0.32370706]
[1717358730742,0.007,67712.0,67711.0,0.32388475]
[1717358732035,0.007,67712.0,67711.0,0.32370706]
[1717358733296,0.007,67712.0,67711.0,0.32388475]
[1717358733734,0.11716447,67712.0,67711.0,0.32388475]
[1717358733947,0.16314435,67712.0,67711.0,0.32388475]
[1717358734132,0.51396958,67712.0,67711.0,0.32388475]
[1717358736285,0.20745911,67712.0,67711.0,0.32388475]
[1717358736511,0.16314435,67712.0,67711.0,0.32388475]
[1717358740991,0.31082835,67712.0,67711.0,0.32388475]
[1717358741219,0.31082835,67712.0,67711.0,0.33718475]
[1717358741434,0.31082835,67712.0,67711.0,0.04060706]
[1717358742293,0.35514311,67712.0,67711.0,0.04060706]
[1717358743515,0.35514311,67712.0,67711.0,0.000946]
[1717358743850,0.31082835,67712.0,67711.0,0.000946]
[1717358744947,1.14623463,67712.0,67711.0,0.000946]
[1717358745170,1.25699983,67712.0,67711.0,0.000946]
[1717358745372,1.72361568,67712.0,67711.0,0.000946]
[1717358745870,1.71661568,67712.0,67711.0,0.000946]
[1717358746072,1.75461568,67712.0,67711.0,0.000946]
[1717358746343,1.88749916,67712.0,67711.0,0.000946]
[1717358746544,2.04998368,67712.0,67711.0,0.000946]
[1717358746707,2.03598368,67712.0,67711.0,0.000946]
[1717358746902,2.02898368,67712.0,67711.0,0.000946]
[1717358747161,2.30987513,67712.0,67711.0,0.000946]
[1717358747283,2.45565304,67712.0,67711.0,0.000946]
[1717358747696,3.11160605,67712.0,67711.0,0.000946]
[1717358748121,2.78698408,67712.0,67711.0,0.000946]
[1717358748331,2.80398408,67712.0,67711.0,0.000946]
[1717358748537,3.48473456,67712.0,67711.0,0.000946]
[1717358748751,3.69977076,67712.0,67711.0,0.000946]
[1717358748958,3.69944537,67712.0,67711.0,0.000946]
[1717358749164,3.69977076,67712.0,67711.0,0.000946]
[1717358749375,3.84934537,67712.0,67711.0,0.000946]
[1717358749576,3.77934537,67712.0,67711.0,0.000946]
[1717358749777,3.81534537,67712.0,67711.0,0.000946]
[1717358750024,3.85134537,67712.0,67711.0,0.000946]
[1717358750221,3.8115763,67712.0,67711.0,0.000946]
[1717358750542,3.8115763,67712.0,67704.0,0.009427]
[1717358750543,1.08883594,67705.0,67704.0,0.009427]
[1717358750760,3.89144507,67705.0,67704.0,0.009427]
[1717358750968,4.31628476,67705.0,67704.0,0.009427]
[1717358751171,4.00408461,67705.0,67704.0,0.009427]
[1717358751369,3.94444661,67705.0,67704.0,0.009427]
[1717358751716,4.25831082,67705.0,67704.0,0.009427]
[1717358751916,3.94444661,67705.0,67704.0,0.009427]
[1717358752292,3.81276353,67705.0,67704.0,0.009427]
[1717358752482,3.84876353,67705.0,67704.0,0.009427]
[1717358754332,4.14416253,67705.0,67704.0,0.009427]
[1717358755000,4.08570092,67705.0,67704.0,0.009427]
[1717358756021,4.12170092,67705.0,67704.0,0.009427]